bitfinex/quotes_SOLUSD_20250106
["timestamp","ask_amount","ask_price","bid_price","bid_amount"]
[1736141620350,9.02854596,216.42,216.37,0.69305373]
[1736141621669,9.02854596,216.42,216.35,9.72163561]
[1736141622468,0.86172027,216.47,216.39,9.02854596]
[1736141622649,9.02854596,216.47,216.4,9.72150474]
[1736141622849,9.02854596,216.47,216.41,2.14]
[1736141624569,9.02854596,216.46,216.41,2.14]
[1736141628171,9.02854596,216.47,216.41,2.14]
[1736141629574,9.02854596,216.47,216.41,2.83295532]
[1736141630370,8.80482027,216.51,216.42,9.02854596]
[1736141630371,9.02854596,216.48,216.42,9.02854596]
[1736141630671,9.02854596,216.49,216.43,0.69286228]
[1736141631389,9.02854596,216.49,216.42,9.02854596]
[1736141631573,9.02854596,216.49,216.42,9.72141388]
[1736141632183,9.02854596,216.48,216.42,9.72141388]
[1736141632469,9.02854596,216.48,216.42,0.69286792]
[1736141633653,9.02854596,216.47,216.42,0.69286792]
[1736141636176,9.02854596,216.45,216.41,2.14]
[1736141636381,9.02854596,216.44,216.41,2.14]
[1736141638475,9.02854596,216.43,216.41,2.14]
[1736141639978,9.02854596,216.44,216.41,2.14]
[1736141640477,0.86172027,216.49,216.41,2.14]
[1736141640682,9.02854596,216.45,216.41,2.14]
[1736141641988,0.86172027,216.49,216.42,9.02854596]
[1736141642290,9.02854596,216.5,216.43,9.02854596]
[1736141642657,9.02854596,216.49,216.42,9.02854596]
[1736141643793,12.40722027,216.54,216.42,9.02854596]
[1736141644093,9.02854596,216.49,216.42,9.02854596]
[1736141645086,9.02854596,216.49,216.42,321.02854596]
[1736141645357,12.40722027,216.54,216.43,0.69287652]
[1736141645473,9.02854596,216.49,216.43,0.69287652]
[1736141646584,9.02854596,216.49,216.42,321.02854596]
[1736141646883,9.02854596,216.49,216.43,0.69286524]
[1736141647593,0.86172027,216.56,216.46,9.02854596]
[1736141647893,9.02854596,216.5,216.43,2.33366524]
[1736141648186,9.02854596,216.49,216.43,1.6408]
[1736141648384,9.02854596,216.49,216.43,2.33367478]
[1736141648577,9.02854596,216.51,216.44,9.02854596]
[1736141648774,0.86172027,216.55,216.45,9.02854596]
[1736141648971,20.0,216.56,216.46,9.02854596]
[1736141649163,9.02854596,216.53,216.47,0.69274537]
[1736141649366,9.02854596,216.53,216.48,2.08]
[1736141650297,0.86172027,216.58,216.48,2.08]
[1736141650586,20.62382073,216.6,216.5,9.02854596]
[1736141650587,9.02854596,216.57,216.5,9.02854596]
[1736141650785,9.02854596,216.55,216.49,0.69268229]
[1736141651173,9.02854596,216.55,216.48,11.10854596]
[1736141651374,9.02854596,216.56,216.49,9.72121216]
[1736141652197,9.02854596,216.57,216.5,9.02854596]
[1736141652888,9.02854596,216.56,216.5,9.02854596]
[1736141653088,9.02854596,216.58,216.51,9.72114392]
[1736141653277,9.02854596,216.6,216.53,9.02854596]
[1736141653989,9.02854596,216.58,216.51,9.72114392]
[1736141654165,9.02854596,216.56,216.51,0.69259796]
[1736141654392,9.02854596,216.58,216.51,9.72110966]
[1736141654978,2.71823916,216.65,216.51,9.72110966]
[1736141654979,9.02854596,216.59,216.52,9.02854596]
[1736141655888,13.91502027,216.66,216.55,9.02854596]
[1736141656072,9.02854596,216.62,216.56,2.08]
[1736141657091,2.37592027,216.66,216.57,9.02854596]
[1736141657092,9.02854596,216.63,216.57,9.02854596]
[1736141657298,1.5142,216.66,216.56,11.10854596]
[1736141657478,9.02854596,216.63,216.56,11.10854596]
[1736141657891,9.02854596,216.62,216.56,2.08]
[1736141658096,9.02854596,216.61,216.56,2.08]
[1736141658264,9.02854596,216.63,216.56,11.10854596]
[1736141658465,20.0,216.67,216.57,9.02854596]
[1736141658669,9.02854596,216.62,216.56,2.08]
[1736141659982,9.02854596,216.63,216.57,9.02854596]
[1736141660180,9.02854596,216.63,216.56,11.10854596]
[1736141661789,9.02854596,216.62,216.56,2.08]
[1736141662090,9.02854596,216.62,216.56,11.10854596]
[1736141662766,9.02854596,216.62,216.56,2.08]
[1736141662977,9.02854596,216.61,216.56,2.08]
[1736141663171,0.86172027,216.66,216.56,2.08]
[1736141663172,9.02854596,216.6,216.56,2.08]
[1736141663420,9.02854596,216.61,216.56,2.08]
[1736141664295,9.02854596,216.61,216.57,2.08]
[1736141665388,0.86172027,216.65,216.57,2.08]
[1736141665600,9.02854596,216.62,216.57,2.08]
[1736141666296,9.02854596,216.61,216.57,2.08]
[1736141666887,9.02854596,216.6,216.57,2.08]
[1736141667077,9.02854596,216.58,216.57,2.12]
[1736141667812,9.02854596,216.59,216.57,2.12]
[1736141667981,9.02854596,216.6,216.57,2.12]
[1736141668185,0.86172027,216.66,216.57,2.12]
[1736141668402,9.02854596,216.61,216.57,2.12]
[1736141669307,0.86172027,216.66,216.57,2.12]
[1736141669599,9.02854596,216.61,216.57,2.12]
[1736141670204,9.02854596,216.62,216.57,2.12]
[1736141670501,9.02854596,216.63,216.57,2.12]
[1736141671322,0.86172027,216.66,216.57,2.12]
[1736141671487,9.02854596,216.65,216.58,9.02854596]
[1736141671797,9.02854596,216.64,216.58,9.02854596]
[1736141673095,9.02854596,216.65,216.58,9.02854596]
[1736141673286,9.02854596,216.66,216.59,9.02854596]
[1736141673705,9.02854596,216.67,216.6,9.02854596]
[1736141673883,9.02854596,216.67,216.61,9.02854596]
[1736141674611,9.02854596,216.66,216.6,9.02854596]
[1736141675724,9.02854596,216.66,216.59,9.72084509]
[1736141676803,9.02854596,216.66,216.59,0.69229913]
[1736141676997,9.02854596,216.64,216.58,9.02854596]
[1736141678600,9.02854596,216.63,216.57,146.2866]
[1736141678810,9.02854596,216.63,216.57,155.31514596]
[1736141678983,9.02854596,216.63,216.57,153.19514596]
[1736141679184,9.02854596,216.63,216.58,2.12]
[1736141679385,9.02854596,216.64,216.58,2.12]
[1736141679683,9.02854596,216.63,216.58,2.12]
[1736141680808,9.02854596,216.65,216.59,9.02854596]
[1736141681103,9.02854596,216.65,216.58,11.14854596]
[1736141681292,9.02854596,216.64,216.58,2.12]
[1736141682115,9.02854596,216.64,216.58,11.14854596]
[1736141683709,2.72230783,216.74,216.59,9.02854596]
[1736141683914,9.02854596,216.65,216.59,9.02854596]
[1736141686714,0.86172027,216.72,216.59,9.02854596]
[1736141687093,9.02854596,216.66,216.59,9.02854596]
[1736141687303,11.5368,216.7,216.58,2.81228444]
[1736141687506,9.02854596,216.65,216.58,11.8408304]
[1736141692251,0.86172027,216.69,216.59,9.02854596]
[1736141692424,9.02854596,216.66,216.59,9.02854596]
[1736141692899,9.02854596,216.65,216.58,11.8408304]
[1736141693099,9.02854596,216.65,216.59,2.12]
[1736141696323,9.02854596,216.65,216.59,11.14854596]
[1736141696923,20.0,216.72,216.61,9.02854596]
[1736141697136,9.02854596,216.67,216.61,9.02854596]
[1736141699410,9.02854596,216.66,216.6,9.72084143]
[1736141700224,9.02854596,216.66,216.6,0.69229547]
[1736141700431,9.02854596,216.67,216.6,9.72084143]
[1736141702030,7.02854596,216.67,216.6,9.72084143]
[1736141705601,0.86172027,216.73,216.6,9.72084143]
[1736141705757,9.02854596,216.66,216.6,9.72084143]
[1736141707325,0.86172027,216.73,216.63,9.02854596]
[1736141707511,9.02854596,216.69,216.63,9.02854596]
[1736141707708,12.39652027,216.74,216.63,9.02854596]
[1736141708017,9.02854596,216.69,216.63,9.02854596]
[1736141711336,9.02854596,216.68,216.6,136.2]
[1736141711548,9.02854596,216.68,216.62,9.02854596]
[1736141711835,9.02854596,216.68,216.61,9.02854596]
[1736141712421,9.02854596,216.65,216.57,7.9666]
[1736141712616,9.02854596,216.63,216.58,2.14]
[1736141713250,9.02854596,216.62,216.58,2.14]
[1736141713817,2.6895363,216.69,216.58,2.14]
[1736141714013,9.02854596,216.63,216.58,2.14]
[1736141715432,9.02854596,216.64,216.58,11.86092376]
[1736141715948,11.5365,216.71,216.6,9.02854596]
[1736141716126,9.02854596,216.67,216.6,9.02854596]
[1736141716438,9.02854596,216.67,216.6,9.72081548]
[1736141717247,9.02854596,216.67,216.61,9.02854596]
[1736141717613,9.02854596,216.67,216.6,0.69226952]
[1736141717822,9.02854596,216.67,216.6,9.72081548]
[1736141719042,9.02854596,216.68,216.61,9.02854596]
[1736141719226,9.02854596,216.68,216.61,9.72076772]
[1736141719836,9.02854596,216.67,216.6,9.02854596]
[1736141720040,20.0,216.72,216.6,9.02854596]
[1736141720243,9.02854596,216.67,216.6,9.02854596]
[1736141721742,9.02854596,216.67,216.61,2.14]
[1736141721945,20.0,216.72,216.61,11.86078394]
[1736141722140,9.02854596,216.7,216.63,9.02854596]
[1736141722335,9.02854596,216.7,216.63,9.72070824]
[1736141722940,0.86172027,216.74,216.63,9.72070824]
[1736141723142,9.02854596,216.69,216.63,0.69216228]
[1736141723553,9.02854596,216.69,216.63,9.72070824]
[1736141725761,9.02854596,216.69,216.63,0.69216228]
[1736141726056,9.41723403,216.76,216.64,32.80542996]
[1736141726057,21.608,216.76,216.64,32.80542996]
[1736141726270,9.02854596,216.71,216.65,9.02854596]
[1736141727459,22.46972027,216.76,216.65,9.02854596]
[1736141727662,9.02854596,216.71,216.65,9.02854596]
[1736141728159,9.02854596,216.71,216.64,0.69209216]
[1736141728356,9.02854596,216.7,216.64,0.69209216]
[1736141730668,9.02854596,216.7,216.64,9.72063812]
[1736141732762,9.02854596,216.7,216.64,0.69209216]
[1736141732966,9.02854596,216.7,216.63,9.72067753]
[1736141733171,9.02854596,216.7,216.64,9.02854596]
[1736141734382,14.00322027,216.76,216.65,29.02854596]
[1736141734558,9.02854596,216.71,216.65,29.7206756]
[1736141735675,0.86172027,216.75,216.65,29.7206756]
[1736141735969,9.02854596,216.71,216.65,29.7206756]
[1736141736376,0.86172027,216.75,216.65,29.7206756]
[1736141736670,9.02854596,216.71,216.65,29.7206756]
[1736141737468,0.86172027,216.79,216.67,9.02854596]
[1736141737672,27.78545206,216.81,216.7,9.02854596]
[1736141737971,9.02854596,216.76,216.71,2.12]
[1736141740671,9.02854596,216.74,216.71,2.12]
[1736141742252,9.02854596,216.72,216.66,0.69204526]
[1736141742448,9.02854596,216.7,216.67,2.12]
[1736141742872,9.02854596,216.69,216.67,2.12]
[1736141743178,9.02854596,216.68,216.67,2.12]
[1736141744459,9.02854596,216.69,216.67,2.12]
[1736141744862,9.02854596,216.7,216.67,2.12]
[1736141746154,9.02854596,216.71,216.67,2.12]
[1736141746372,9.02854596,216.7,216.67,2.12]
[1736141750076,9.02854596,216.68,216.67,2.12]
[1736141750461,9.02854596,216.69,216.67,2.12]
[1736141751163,0.86172027,216.77,216.67,2.12]
[1736141751476,9.02854596,216.71,216.67,2.12]
[1736141752876,9.02854596,216.72,216.67,2.12]
[1736141753081,9.02854596,216.71,216.67,2.12]
[1736141754577,9.02854596,216.72,216.67,2.12]
[1736141756186,9.02854596,216.71,216.67,2.12]
[1736141757282,9.02854596,216.72,216.67,2.12]
[1736141757561,9.02854596,216.73,216.67,11.14854596]
[1736141757769,9.02854596,216.73,216.68,0.69202431]
[1736141758004,9.02854596,216.73,216.67,11.14854596]
[1736141758280,9.02854596,216.72,216.67,2.12]
[1736141759576,9.02854596,216.7,216.67,2.12]
[1736141759794,9.02854596,216.69,216.67,2.12]
[1736141760486,9.02854596,216.68,216.66,2.1]
[1736141760978,0.86172027,216.76,216.66,2.1]
[1736141761193,9.02854596,216.7,216.66,2.1]
[1736141761683,9.02854596,216.7,216.67,2.1]
[1736141761882,9.02854596,216.73,216.67,2.1]
[1736141762186,9.02854596,216.74,216.67,11.12854596]
[1736141763886,0.86172027,216.8,216.68,9.72064106]
[1736141763887,9.02854596,216.75,216.68,9.72064106]
[1736141765105,9.07338941,216.83,216.81,20.0]
[1736141765106,7.27953179,216.83,216.81,20.0]
[1736141765272,7.27953179,216.86,216.82,35.59700986]
[1736141765470,7.27953179,216.86,216.84,9.02854596]
[1736141765669,7.27953179,216.86,216.85,0.69154972]
[1736141766592,9.02854596,216.91,216.85,0.69154972]
[1736141767175,2.42982027,216.95,216.85,0.69154972]
[1736141767382,9.02854596,216.91,216.85,0.69154972]
[1736141767699,9.02854596,216.91,216.84,9.02854596]
[1736141767875,9.02854596,216.9,216.83,9.72007237]
[1736141768072,9.02854596,216.88,216.83,0.69152641]
[1736141768273,2.42982027,216.95,216.82,2.1]
[1736141768274,9.02854596,216.84,216.82,2.1]
[1736141768479,9.02854596,216.83,216.82,2.1]
[1736141769304,20.0,216.89,216.82,2.1]
[1736141769597,9.02854596,216.85,216.82,2.1]
[1736141769799,11.5249,216.93,216.82,2.1]
[1736141769800,0.86172027,216.91,216.82,2.1]
[1736141770087,0.86172027,216.91,216.84,32.80542996]
[1736141770088,9.02854596,216.91,216.84,32.80542996]
[1736141770290,2.42982027,216.95,216.84,23.776884]
[1736141770291,9.02854596,216.9,216.84,23.776884]
[1736141770469,9.02854596,216.9,216.85,0.69150143]
[1736141772373,9.02854596,216.91,216.85,0.69150143]
[1736141772568,9.02854596,216.9,216.85,0.69150143]
[1736141772981,14.04352331,216.9,216.85,0.69150143]
[1736141773183,14.04352331,216.92,216.86,37.82040731]
[1736141773470,14.04352331,216.92,216.87,0.6914048]
[1736141773677,14.04352331,216.88,216.85,1.516]
[1736141773874,14.04352331,216.89,216.85,1.516]
[1736141774080,14.04352331,216.9,216.86,0.6915018]
[1736141774277,14.04352331,216.91,216.86,0.6915018]
[1736141774804,14.04352331,216.9,216.86,0.6915018]
[1736141775604,14.04352331,216.9,216.85,1.516]
[1736141776092,14.04352331,216.9,216.85,2.20749283]
[1736141776393,0.86172027,217.02,216.88,23.776884]
[1736141776600,14.04352331,216.95,216.89,16.83482972]
[1736141777005,14.04352331,216.94,216.89,2.79130641]
[1736141777481,14.04352331,216.94,216.89,22.79130641]
[1736141778207,14.04352331,216.94,216.89,2.79130641]
[1736141778705,14.04352331,216.93,216.89,2.79130641]
[1736141778873,14.04352331,216.93,216.89,22.79130641]
[1736141779691,14.04352331,216.94,216.89,2.79130641]
[1736141783414,14.04352331,216.94,216.9,2.1]
[1736141784229,14.04352331,216.95,216.91,0.69131981]
[1736141784734,12.38132027,217.02,216.91,0.69131981]
[1736141784735,14.04352331,216.94,216.91,0.69131981]
[1736141786632,14.04352331,216.95,216.91,0.69131981]
[1736141787343,14.04352331,216.94,216.91,0.69131981]
[1736141788826,14.04352331,216.94,216.9,2.1]
[1736141789723,14.04352331,216.95,216.9,2.1]
[1736141789929,14.04352331,216.95,216.91,0.69127243]
[1736141790393,14.04352331,216.96,216.91,0.69127243]
[1736141790795,14.04352331,216.95,216.91,0.69127243]
[1736141791015,0.86172027,217.02,216.9,2.1]
[1736141791215,14.04352331,216.95,216.91,0.69130868]
[1736141791816,0.86172027,217.02,216.91,0.69130868]
[1736141791994,14.04352331,216.96,216.91,0.69130868]
[1736141792197,14.04352331,216.96,216.92,23.776884]
[1736141792401,14.04352331,216.96,216.93,0.6912345]
[1736141793041,8.98240827,216.96,216.93,0.6912345]
[1736141794126,13.0972,217.06,216.93,0.6912345]
[1736141794327,8.98240827,216.96,216.93,0.6912345]
[1736141796227,0.86172027,217.05,216.93,0.6912345]
[1736141796430,8.98240827,216.97,216.93,0.6912345]
[1736141798130,13.0972,217.06,216.93,0.6912345]
[1736141798430,8.98240827,217.0,216.93,9.67364277]
[1736141799229,0.86172027,217.05,216.93,9.67364277]
[1736141799405,8.98240827,217.0,216.94,8.98240827]
[1736141799604,8.98240827,217.0,216.95,0.69116914]
[1736141801331,8.98240827,216.99,216.95,0.69116914]
[1736141801511,8.98240827,216.98,216.95,0.69116914]
[1736141801825,2.44122027,217.06,216.93,0.69117642]
[1736141801826,8.98240827,216.97,216.93,0.69117642]
[1736141802050,8.98240827,216.95,216.94,2.12]
[1736141803107,8.98240827,216.96,216.94,2.12]
[1736141805016,8.98240827,216.95,216.94,2.12]
[1736141805330,0.86172027,217.02,216.94,2.12]
[1736141805531,8.98240827,216.95,216.94,2.12]
[1736141807031,8.98240827,216.95,216.9,20.69131189]
[1736141807234,8.98240827,216.93,216.87,7.5913]
[1736141807407,8.98240827,216.93,216.88,2.12]
[1736141807614,8.98240827,216.92,216.87,8.28272274]
[1736141807826,8.98240827,216.93,216.87,8.28272274]
[1736141808011,8.98240827,216.93,216.88,2.12]
[1736141809230,8.98240827,216.93,216.89,2.12]
[1736141809548,8.98240827,216.92,216.89,2.12]
[1736141810011,8.98240827,216.91,216.89,2.12]
[1736141810413,8.98240827,216.9,216.85,0.69146062]
[1736141810733,8.98240827,216.91,216.86,2.12]
[1736141811233,8.98240827,216.91,216.87,2.12]
[1736141811721,14.02442027,216.99,216.87,2.12]
[1736141811918,8.98240827,216.92,216.87,2.8114013]
[1736141812238,8.98240827,216.91,216.87,2.12]
[1736141812815,8.98240827,216.91,216.85,0.6914013]
[1736141813015,8.98240827,216.91,216.86,2.12]
[1736141813944,14.02442027,216.99,216.86,2.12]
[1736141814133,8.98240827,216.93,216.87,9.67391452]
[1736141814651,8.98240827,216.94,216.87,9.67391452]
[1736141814864,8.98240827,216.94,216.88,8.98240827]
[1736141815033,8.98240827,216.94,216.89,0.69138606]
[1736141816258,8.98240827,216.94,216.88,8.98240827]
[1736141816417,8.98240827,216.94,216.87,9.67382879]
[1736141816970,8.98240827,216.93,216.87,9.67382879]
[1736141817387,8.98240827,216.93,216.86,2.12]
[1736141817388,8.98240827,216.91,216.86,2.12]
[1736141818803,8.98240827,216.9,216.86,2.12]
[1736141819931,8.98240827,216.89,216.83,9.67384971]
[1736141820137,8.98240827,216.89,216.87,2.1]
[1736141820525,0.86172027,216.97,216.87,2.1]
[1736141820841,8.98240827,216.92,216.87,2.1]
[1736141821043,8.98240827,216.92,216.86,0.69147983]
[1736141821262,0.86172027,216.97,216.87,11.08240827]
[1736141821543,8.98240827,216.94,216.88,0.6914159]
[1736141823444,2.50302027,216.99,216.88,0.6914159]
[1736141823752,8.98240827,216.94,216.88,0.6914159]
[1736141825334,8.98240827,216.95,216.88,9.67382417]
[1736141826027,2.50302027,216.99,216.89,8.98240827]
[1736141826230,8.98240827,216.97,216.9,9.67382521]
[1736141826440,8.98240827,216.98,216.91,8.98240827]
[1736141826849,8.98240827,216.99,216.92,9.67369141]
[1736141827457,2.46762027,217.04,216.91,8.98240827]
[1736141827458,8.98240827,216.98,216.91,8.98240827]
[1736141827656,2.46762027,217.04,216.9,7.06366153]
[1736141827657,8.98240827,216.97,216.9,16.0460698]
[1736141829349,8.98240827,216.95,216.9,0.69126153]
[1736141829648,8.98240827,216.93,216.87,19.01400183]
[1736141830154,8.98240827,216.93,216.87,11.77376322]
[1736141830402,8.98240827,216.94,216.87,11.77376322]
[1736141830542,8.98240827,216.93,216.88,2.1]
[1736141832330,8.98240827,216.92,216.88,2.1]
[1736141832533,8.98240827,216.91,216.88,2.1]
[1736141832748,8.98240827,216.89,216.85,6.1469]
[1736141832940,8.98240827,216.89,216.86,2.1]
[1736141833848,8.98240827,216.87,216.82,7.24023861]
[1736141834045,8.98240827,216.85,216.83,2.1]
[1736141834950,8.98240827,216.84,216.81,7.24023861]
[1736141835153,8.98240827,216.82,216.81,7.24023861]
[1736141835340,8.98240827,216.82,216.79,2.1]
[1736141835541,8.98240827,216.81,216.79,2.1]
[1736141837746,1.6434,216.87,216.79,2.1]
[1736141837747,8.98240827,216.8,216.79,2.1]
[1736141838063,8.98240827,216.8,216.75,0.69183717]
[1736141838259,8.98240827,216.79,216.76,2.1]
[1736141838562,8.98240827,216.81,216.76,2.1]
[1736141839166,2.50512027,216.87,216.76,11.08240827]
[1736141839457,8.98240827,216.82,216.76,11.08240827]
[1736141839763,8.98240827,216.82,216.76,2.1]
[1736141840458,8.98240827,216.82,216.76,11.08240827]
[1736141840964,8.98240827,216.81,216.76,2.1]
[1736141841133,8.98240827,216.81,216.75,9.67424544]
[1736141841340,8.98240827,216.79,216.76,2.1]
[1736141841566,8.98240827,216.77,216.76,2.1]
[1736141842242,8.98240827,216.79,216.76,2.1]
[1736141842859,8.98240827,216.78,216.76,2.1]
[1736141843564,8.98240827,216.77,216.76,2.1]
[1736141843759,8.98240827,216.77,216.72,20.0]
[1736141843951,8.98240827,216.75,216.73,2.1]
[1736141845043,8.98240827,216.75,216.71,2.1]
[1736141845240,8.98240827,216.75,216.68,9.67447489]
[1736141845447,8.98240827,216.75,216.69,2.1]
[1736141846039,8.98240827,216.78,216.72,8.98240827]
[1736141846243,8.98240827,216.79,216.72,8.98240827]
[1736141846443,8.98240827,216.77,216.71,8.98240827]
[1736141846856,8.98240827,216.76,216.7,0.69204052]
[1736141847041,8.98240827,216.76,216.69,11.08240827]
[1736141847869,8.98240827,216.75,216.69,2.1]
[1736141848052,8.98240827,216.73,216.7,2.12]
[1736141848244,8.98240827,216.72,216.69,2.12]
[1736141848437,8.98240827,216.72,216.66,9.67441324]
[1736141848646,8.98240827,216.72,216.67,2.12]
[1736141848864,8.98240827,216.72,216.68,2.12]
[1736141849172,8.98240827,216.73,216.68,2.12]
[1736141849466,8.98240827,216.77,216.7,8.98240827]
[1736141849652,8.98240827,216.78,216.71,9.67437402]
[1736141850968,8.98240827,216.79,216.72,8.98240827]
[1736141851143,14.057561,216.82,216.75,14.057561]
[1736141851351,14.057561,216.82,216.76,2.12]
[1736141852673,14.057561,216.82,216.76,16.177561]
[1736141852971,14.057561,216.82,216.76,2.12]
[1736141853848,14.057561,216.8,216.76,2.12]
[1736141855753,14.057561,216.78,216.73,20.0]
[1736141855953,14.057561,216.78,216.74,2.12]
[1736141856875,14.057561,216.78,216.73,20.0]
[1736141857061,14.057561,216.78,216.74,2.12]
[1736141857752,14.057561,216.77,216.74,2.12]
[1736141858368,14.057561,216.78,216.74,2.12]
[1736141858872,14.057561,216.77,216.74,2.12]
[1736141859450,14.057561,216.78,216.74,2.12]
[1736141860982,0.86172027,216.84,216.74,16.177561]
[1736141861154,0.86172027,216.86,216.77,14.057561]
[1736141861354,14.057561,216.85,216.78,14.057561]
[1736141861579,0.86172027,216.84,216.79,14.057561]
[1736141861771,14.057561,216.85,216.78,14.057561]
[1736141861966,0.86172027,216.84,216.78,14.057561]
[1736141862178,14.91928127,216.84,216.77,14.057561]
[1736141863078,14.91928127,216.84,216.78,14.057561]
[1736141863281,14.057561,216.84,216.78,14.057561]
[1736141864070,14.057561,216.84,216.77,14.057561]
[1736141864269,14.057561,216.83,216.76,14.057561]
[1736141865560,14.057561,216.83,216.77,14.057561]
[1736141865992,14.057561,216.84,216.77,14.057561]
[1736141866880,14.057561,216.86,216.79,14.057561]
[1736141867100,14.057561,216.86,216.8,14.74925249]
[1736141867264,14.057561,216.86,216.81,2.12]
[1736141868568,14.057561,216.87,216.81,2.12]
[1736141870304,14.057561,216.86,216.81,2.12]
[1736141870786,14.057561,216.87,216.81,2.12]
[1736141871575,14.057561,216.86,216.81,2.12]
[1736141873087,8.99095621,216.86,216.81,2.12]
[1736141873585,8.99095621,216.88,216.82,0.69165297]
[1736141874388,8.99095621,216.87,216.82,0.69165297]
[1736141874894,8.99095621,216.88,216.82,0.69165297]
[1736141876586,8.99095621,216.87,216.82,0.69165297]
[1736141876791,8.99095621,216.83,216.81,2.12]
[1736141877084,8.99095621,216.82,216.77,0.69162722]
[1736141877277,8.99095621,216.82,216.78,2.14]
[1736141877989,8.99095621,216.81,216.78,22.14]
[1736141878190,8.99095621,216.81,216.78,2.14]
[1736141878366,8.99095621,216.8,216.78,2.14]
[1736141879395,8.99095621,216.81,216.78,2.14]
[1736141879911,8.99095621,216.8,216.75,20.69188496]
[1736141880085,8.99095621,216.77,216.76,2.14]
[1736141881596,8.99095621,216.79,216.76,2.14]
[1736141882098,7.36532027,216.85,216.76,2.14]
[1736141882301,8.99095621,216.81,216.76,2.14]
[1736141882687,8.99095621,216.82,216.76,2.14]
[1736141884205,8.99095621,216.8,216.76,2.14]
[1736141885232,14.05608769,216.8,216.76,2.14]
[1736141886721,14.05608769,216.81,216.76,2.14]
[1736141887919,14.05608769,216.79,216.76,2.14]
[1736141888089,14.05608769,216.8,216.76,2.14]
[1736141888292,14.05608769,216.81,216.76,2.14]
[1736141888981,14.05608769,216.8,216.76,2.14]
[1736141891218,14.05608769,216.79,216.76,2.14]
[1736141891409,0.86172027,216.86,216.73,20.0]
[1736141891410,14.05608769,216.77,216.73,20.0]
[1736141891612,14.05608769,216.77,216.75,2.14]
[1736141892312,14.05608769,216.78,216.75,2.14]
[1736141892490,14.05608769,216.77,216.75,2.14]
[1736141893892,14.05608769,216.76,216.69,0.69201386]
[1736141894088,14.05608769,216.7,216.68,7.24023861]
[1736141894291,14.05608769,216.69,216.68,7.24023861]
[1736141894499,14.05608769,216.7,216.68,7.24023861]
[1736141894924,14.05608769,216.71,216.68,7.24023861]
[1736141895389,14.05608769,216.71,216.66,2.14]
[1736141896696,14.05608769,216.74,216.67,14.05608769]
[1736141896900,14.05608769,216.73,216.67,14.05608769]
[1736141897628,14.05608769,216.71,216.66,2.14]
[1736141898410,14.05608769,216.72,216.66,16.19608769]
[1736141900418,14.05608769,216.71,216.66,2.14]
[1736141900607,14.05608769,216.68,216.62,14.74818829]
[1736141900797,23.776884,216.76,216.61,8.1083]
[1736141900798,14.05608769,216.67,216.61,8.1083]
[1736141901116,14.05608769,216.67,216.62,2.14]
[1736141901491,0.86172027,216.75,216.62,2.14]
[1736141901699,14.05608769,216.67,216.62,2.14]
[1736141901999,14.05608769,216.66,216.62,2.14]
[1736141902197,14.05608769,216.66,216.6,20.0]
[1736141902414,1.6308,216.72,216.58,14.05608769]
[1736141902415,14.05608769,216.64,216.58,14.05608769]
[1736141902715,14.05608769,216.64,216.59,2.14]
[1736141902914,0.86172027,216.69,216.59,36.19608769]
[1736141902915,14.05608769,216.65,216.59,36.19608769]
[1736141903096,14.05608769,216.65,216.6,2.14]
[1736141905223,14.91780796,216.64,216.56,8.0981]
[1736141905408,14.05608769,216.63,216.57,2.14]
[1736141906050,14.05608769,216.64,216.58,14.05608769]
[1736141906228,14.05608769,216.64,216.58,14.74857704]
[1736141906906,14.05608769,216.63,216.57,16.88851375]
[1736141907130,9.01127112,216.61,216.57,2.14]
[1736141907315,9.01127112,216.63,216.57,2.14]
[1736141907508,9.01127112,216.62,216.58,2.12]
[1736141907714,9.01127112,216.63,216.58,2.12]
[1736141909943,0.86172027,216.68,216.58,2.12]
[1736141910109,9.01127112,216.66,216.6,9.01127112]
[1736141910433,9.01127112,216.67,216.6,9.01127112]
[1736141910931,9.01127112,216.66,216.6,9.01127112]
[1736141911617,9.01127112,216.67,216.61,9.70360991]
[1736141912923,9.01127112,216.67,216.61,0.69233879]
[1736141914023,2.49252027,216.72,216.61,0.69233879]
[1736141914223,9.01127112,216.66,216.61,0.69233879]
[1736141916910,9.01127112,216.65,216.6,20.0]
[1736141917115,9.01127112,216.64,216.61,20.0]
[1736141917538,9.01127112,216.65,216.6,20.0]
[1736141917726,2.49252027,216.72,216.61,9.70360628]